fUSD/lending_fUSD_20240225
["ID","MTS","AMOUNT","RATE_DAILY","PERIOD"]
[315132211,1708865510899,-645.03540325,0.00024899,2]
[315132212,1708865510908,-500.0,0.00024899,2]
[315132213,1708865510918,-230.50769582,0.00024899,2]
[315132214,1708865510927,-2327.89,0.00024899,2]
[315132215,1708865510936,-2327.89,0.00024899,2]
[315132216,1708865510946,-2327.89,0.00024899,2]
[315132217,1708865510956,-2327.89,0.00024899,2]
[315132218,1708865510966,-500.0,0.00024899,2]
[315132219,1708865510976,-500.0,0.00024899,2]
[315132220,1708865510986,-510.59874094,0.00024899,2]
[315132221,1708865510995,-500.0,0.00024899,2]
[315132222,1708865511006,-500.0,0.00024899,2]
[315132223,1708865511015,-500.0,0.00024899,2]
[315132224,1708865511025,-500.0,0.00024899,2]
[315132225,1708865511035,-536.96888417,0.00024899,2]
[315132226,1708865511045,-500.0,0.00024899,2]
[315132227,1708865511054,-1218.49,0.00024899,2]
[315132228,1708865511066,-500.0,0.00024899,2]
[315132229,1708865511082,-524.56000046,0.00024899,2]
[315132230,1708865511092,-1218.49,0.00024899,2]
[315132231,1708865511101,-500.0,0.00024899,2]
[315132232,1708865511112,-1218.49,0.00024899,2]
[315132233,1708865511123,-500.0,0.00024899,2]
[315132234,1708865511133,-1218.49,0.00024899,2]
[315132235,1708865511143,-500.0,0.00024899,2]
[315132236,1708865511154,-1218.49,0.00024899,2]
[315132237,1708865511166,-500.0,0.00024899,2]
[315132238,1708865511176,-500.0,0.00024899,2]
[315132239,1708865511187,-500.0,0.00024899,2]
[315132240,1708865511197,-500.0,0.00024899,2]
[315132241,1708865511208,-500.0,0.00024899,2]
[315132242,1708865511218,-413.10067243,0.00024899,2]
[315132243,1708865511229,-500.0,0.00024899,2]
[315132244,1708865511240,-500.0,0.00024899,2]
[315132245,1708865511250,-265.62647459,0.00024899,2]
[315132246,1708865511438,-522.58,0.00024897,2]
[315132247,1708865511451,-216.07,0.00024897,2]
[315132248,1708865511461,-613.26,0.00024898,2]
[315132249,1708865511771,-234.37352541,0.00024899,2]
[315132250,1708865511783,-500.0,0.00024899,2]
[315132251,1708865511793,-500.0,0.00024899,2]
[315132252,1708865511802,-500.0,0.00024899,2]
[315132253,1708865511812,-500.0,0.00024899,2]
[315132254,1708865511821,-500.0,0.00024899,2]
[315132255,1708865511831,-100.47230814,0.00024899,2]
[315132256,1708865511845,-136.68160979,0.00024899,2]
[315132257,1708865511855,-500.0,0.00024899,2]
[315132258,1708865511866,-500.0,0.00024899,2]
[315132259,1708865511877,-2842.2,0.00024899,2]
[315132260,1708865511887,-2842.2,0.00024899,2]
[315132261,1708865511898,-500.0,0.00024899,2]
[315132262,1708865511908,-2842.2,0.00024899,2]
[315132263,1708865511921,-195.98181544,0.00024899,2]
[315132264,1708865511931,-2842.2,0.00024899,2]
[315132265,1708865511941,-5691.43,0.00024899,2]
[315132266,1708865511951,-5691.43,0.00024899,2]
[315132267,1708865511961,-576.99,0.00024899,2]
[315132268,1708865511971,-2765.17784268,0.00024899,2]
[315132269,1708865511985,-2926.25215732,0.00024899,2]
[315132270,1708865511995,-92.59784268,0.00024899,2]
[315132271,1708865512008,-484.39215732,0.00024899,2]
[315132272,1708865512018,-5691.43,0.00024899,2]
[315132273,1708865512028,-576.99,0.00024899,2]
[315132274,1708865512039,-1905.60321368,0.00024899,2]
[315132275,1708865512051,-1083.96802157,0.00024899,2]
[315132276,1708865512062,-300.0,0.00024899,2]
[315132277,1708865512076,-1257.25445626,0.00024899,2]
[315132278,1708865512087,-1144.60430849,0.00024899,2]
[315132279,1708865512097,-576.99,0.00024899,2]
[315132280,1708865512106,-576.99,0.00024899,2]
[315132281,1708865512116,-576.99,0.00024899,2]
[315132282,1708865512126,-576.99,0.00024899,2]
[315132283,1708865512135,-576.99,0.00024899,2]
[315132284,1708865512144,-576.99,0.00024899,2]
[315132285,1708865512155,-500.0,0.00024899,2]
[315132286,1708865512166,-500.0,0.00024899,2]
[315132287,1708865512176,-586.14892933,0.00024899,2]
[315132288,1708865512185,-500.0,0.00024899,2]
[315132289,1708865512194,-500.0,0.00024899,2]
[315132290,1708865512203,-500.0,0.00024899,2]
[315132291,1708865512213,-500.0,0.00024899,2]
[315132292,1708865512222,-500.0,0.00024899,2]
[315132293,1708865512231,-500.0,0.00024899,2]
[315132294,1708865512240,-500.0,0.00024899,2]
[315132295,1708865512249,-500.0,0.00024899,2]
[315132296,1708865512258,-816.29,0.00024899,2]
[315132297,1708865512267,-3576.62,0.00024899,2]
[315132298,1708865512277,-3576.62,0.00024899,2]
[315132299,1708865512286,-816.29,0.00024899,2]
[315132300,1708865512295,-3576.62,0.00024899,2]
[315132301,1708865512304,-816.29,0.00024899,2]
[315132302,1708865512313,-816.29,0.00024899,2]
[315132303,1708865512323,-126.03494006,0.00024899,2]
[315132304,1708865512336,-3450.58505994,0.00024899,2]
[315132305,1708865512347,-816.29,0.00024899,2]
[315132306,1708865512358,-570.72,0.00024899,2]
[315132307,1708865512368,-570.72,0.00024899,2]
[315132308,1708865512380,-570.72,0.00024899,2]
[315132309,1708865512390,-467.49950405,0.00024899,2]
[315132310,1708865512399,-410.98829907,0.00024899,2]
[315132311,1708865521643,231.620582,0.00024898,7]
[315132312,1708865521851,231.620582,0.00024898,7]
[315132313,1708865521901,231.620582,0.00024898,7]
[315132314,1708865522050,231.620582,0.00024898,7]
[315132315,1708865522146,231.620582,0.00024898,7]
[315132316,1708865522246,231.620582,0.00024898,7]
[315132317,1708865522299,231.620582,0.00024898,7]
[315132318,1708865522381,231.620582,0.00024898,7]
[315132319,1708865522457,231.620582,0.00024898,7]
[315132320,1708865522589,231.620582,0.00024898,7]
[315132321,1708865522686,231.620582,0.00024898,7]
[315132322,1708865522727,231.620582,0.00024898,7]
[315132323,1708865522754,231.620582,0.00024898,7]
[315132324,1708865522855,231.620582,0.00024898,7]
[315132325,1708865523190,231.620582,0.00024898,7]
[315132326,1708865523232,231.620582,0.00024898,7]
[315132327,1708865523307,231.620582,0.00024898,7]
[315132328,1708865523347,231.620582,0.00024898,7]
[315132329,1708865523395,231.620582,0.00024898,7]
[315132330,1708865523611,231.62058,0.00024898,7]
[315132331,1708865553307,242.78,0.00021914,2]
[315132332,1708865585124,417.09436927,0.00024899,10]
[315132333,1708865602489,722.04,0.00023732,2]
[315132334,1708865606086,1867.23,0.00023732,2]
[315132335,1708865608937,169.02,0.00023732,2]
[315132337,1708865641583,500.0,0.00024897,9]
[315132338,1708865641623,615.82016421,0.00024,2]
[315132339,1708865641858,500.0,0.00024897,9]
[315132340,1708865642279,564.61899113,0.00024897,9]
[315132341,1708865647375,250.0,0.00023731,2]
[315132343,1708865650765,628.25231841,0.00024,2]
[315132344,1708865651773,1347.5124,0.00023903,2]
[315132345,1708865672441,328.0,0.00023734,2]
[315132349,1708865726724,878.79713015,0.00022708,2]
[315132350,1708865742399,878.79713015,0.00022547,2]
[315132351,1708865751454,357.24949388,0.00024897,10]
[315132352,1708865760377,878.79713015,0.00022547,2]
[315132353,1708865782430,235.73311495,0.00022547,2]
[315132354,1708865793223,243.98,0.00023731,2]
[315132355,1708865817256,231.61579955,0.00024,2]
[315132356,1708865836257,628.25231841,0.00024,2]
[315132357,1708865849895,164.99,0.00023734,2]
[315132358,1708865850600,164.99,0.00023998,2]
[315132359,1708865885957,2000.0,0.00023732,2]
[315132360,1708865899786,231.61579955,0.00024,2]
[315132361,1708865906779,628.25231841,0.00024,2]
[315132362,1708865923334,155.0,0.00024,2]
[315132363,1708865926642,169.18,0.0002391,2]
[315132364,1708865933075,20610.16,0.00023736,2]
[315132365,1708866032902,258.2,0.00021819,2]
[315132366,1708866049550,601.7,0.00023735,2]
[315132367,1708866071261,2720.09,0.00023929,2]
[315132368,1708866129244,737.6,0.00023695,2]
[315132370,1708866260988,243.98,0.00023697,2]
[315132371,1708866271084,1000.0,0.00024,2]
[315132374,1708866434341,231.61579955,0.00024,2]
[315132375,1708866448174,169.18,0.0002382,2]
[315132376,1708866511805,277.66575429,0.00023,2]
[315132377,1708866542509,501.42,0.00023607,2]
[315132378,1708866574356,271.48,0.00021705,2]
[315132379,1708866574572,271.48,0.00023969,2]
[315132384,1708866633988,-461.51672541,0.00024078,2]
[315132427,1708866634727,-751.53195758,0.00024078,2]
[315132429,1708866634736,-628.25231841,0.00024079,2]
[315132431,1708866634746,-160.5324337,0.00024205,2]
[315132433,1708866634756,-164.99,0.00024262,2]
[315132435,1708866634766,-1620.695823,0.000243,2]
[315132437,1708866634776,-160.53243369,0.00024303,2]
[315132439,1708866634785,-15185.0,0.00024305,2]
[315132441,1708866634795,-353.21,0.00024384,2]
[315132443,1708866634805,-318.37,0.00024384,2]
[315132445,1708866634815,-8160.02,0.00024385,2]
[315132447,1708866634825,-160.53243369,0.00024402,2]
[315132449,1708866634834,-3923.85,0.00024402,2]
[315132451,1708866634843,-169.18,0.00024441,2]
[315132453,1708866634853,-12430.69999226,0.000245,2]
[315132455,1708866634862,-160.53243369,0.000245,2]
[315132457,1708866634871,-2328.89078991,0.00024515,2]
[315132459,1708866634881,-164.99,0.00024525,2]
[315132461,1708866634893,-9999.99,0.00024525,2]
[315132463,1708866634902,-1308.91926803,0.00024557,2]
[315132465,1708866634912,-426.93736647,0.00024594,2]
[315132467,1708866634921,-426.93736645,0.00024596,2]
[315132469,1708866634931,-157.62675042,0.00024596,2]
[315132471,1708866634940,-426.93736645,0.00024597,2]
[315132473,1708866634950,-2844.80696042,0.00024598,2]
[315132475,1708866634959,-160.53243369,0.00024598,2]
[315132477,1708866634969,-24217.31058314,0.00024616,2]
[315132479,1708866634978,-150.99,0.00024652,2]
[315132481,1708866634988,-220.21669526,0.00024693,2]
[315132483,1708866634997,-419.03192047,0.00024693,2]
[315132485,1708866635007,-524.02,0.00024694,2]
[315132487,1708866635017,-500.0,0.00024694,2]
[315132489,1708866635026,-634.23,0.00024694,2]
[315132491,1708866635036,-500.0,0.00024694,2]
[315132493,1708866635046,-745.12,0.00024694,2]
[315132495,1708866635056,-1443.97,0.00024694,2]
[315132497,1708866635066,-1111.3,0.00024694,2]
[315132499,1708866635076,-2791.03,0.00024694,2]
[315132501,1708866635086,-553.25,0.00024694,2]
[315132503,1708866635096,-558.11,0.00024694,2]
[315132505,1708866635106,-1678.17,0.00024694,2]
[315132507,1708866635115,-2245.68,0.00024694,2]
[315132509,1708866635125,-500.0,0.00024694,2]
[315132511,1708866635135,-616.25,0.00024694,2]
[315132513,1708866635145,-1299.73,0.00024694,2]
[315132515,1708866635154,-636.94,0.00024694,2]
[315132518,1708866635164,-511.6,0.00024694,2]
[315132520,1708866635174,-500.0,0.00024694,2]
[315132522,1708866635183,-500.0,0.00024694,2]
[315132524,1708866635193,-619.16,0.00024694,2]
[315132526,1708866635202,-500.0,0.00024694,2]
[315132528,1708866635211,-500.0,0.00024694,2]
[315132530,1708866635221,-500.0,0.00024694,2]
[315132532,1708866635230,-506.0,0.00024694,2]
[315132534,1708866635240,-1170.39,0.00024694,2]
[315132536,1708866635249,-500.0,0.00024694,2]
[315132538,1708866635258,-500.0,0.00024694,2]
[315132540,1708866635268,-532.84,0.00024694,2]
[315132542,1708866635277,-500.0,0.00024694,2]
[315132543,1708866635286,-500.0,0.00024694,2]
[315132545,1708866635296,-2218.86,0.00024694,2]
[315132548,1708866635305,-565.21,0.00024694,2]
[315132549,1708866635315,-500.0,0.00024694,2]
[315132552,1708866635324,-500.0,0.00024694,2]
[315132553,1708866635333,-500.0,0.00024694,2]
[315132556,1708866635342,-747.82,0.00024694,2]
[315132558,1708866635352,-1484.92,0.00024694,2]
[315132560,1708866635361,-500.0,0.00024694,2]
[315132562,1708866635369,-500.0,0.00024694,2]
[315132563,1708866635379,-500.0,0.00024694,2]
[315132564,1708866635388,-500.0,0.00024694,2]
[315132565,1708866635397,-956.42,0.00024694,2]
[315132566,1708866635406,-1222.02,0.00024694,2]
[315132567,1708866635415,-312363.66224918,0.00024695,2]
[315132568,1708866635425,-160.53243369,0.00024697,2]
[315132569,1708866635437,-236.71518368,0.00024698,2]
[315132570,1708866635447,-150.0,0.00024716,2]
[315132571,1708866635456,-150.0,0.00024718,2]
[315132572,1708866635466,-150.0,0.00024724,2]
[315132573,1708866635475,-150.0,0.00024728,2]
[315132574,1708866635485,-150.0,0.00024731,2]
[315132575,1708866635494,-150.0,0.00024731,2]
[315132576,1708866635504,-150.0,0.00024732,2]
[315132577,1708866635513,-150.0,0.00024733,2]
[315132578,1708866635524,-150.0,0.00024735,2]
[315132579,1708866635533,-150.0,0.00024736,2]
[315132580,1708866635545,-150.0,0.00024737,2]
[315132581,1708866635554,-150.0,0.00024739,2]
[315132582,1708866635563,-150.0,0.00024741,2]
[315132583,1708866635573,-150.0,0.00024743,2]
[315132584,1708866635583,-300.0,0.00024744,2]
[315132585,1708866635592,-150.0,0.00024745,2]
[315132586,1708866635602,-150.0,0.00024747,2]
[315132587,1708866635612,-1500.0,0.00024748,2]
[315132588,1708866635622,-150.0,0.00024748,2]
[315132589,1708866635631,-150.0,0.00024748,2]
[315132590,1708866635641,-150.0,0.0002475,2]
[315132591,1708866635651,-150.0,0.0002475,2]
[315132592,1708866635661,-150.0,0.00024754,2]
[315132593,1708866635670,-150.0,0.00024759,2]
[315132594,1708866635679,-300.0,0.00024761,2]
[315132595,1708866635689,-1000.0,0.00024763,2]
[315132596,1708866635699,-150.0,0.00024764,2]
[315132597,1708866635708,-150.0,0.00024765,2]
[315132598,1708866635718,-150.0,0.00024769,2]
[315132599,1708866635727,-150.0,0.0002477,2]
[315132600,1708866635738,-150.0,0.00024771,2]
[315132601,1708866635747,-150.0,0.00024771,2]
[315132602,1708866635757,-150.0,0.00024774,2]
[315132603,1708866635767,-150.0,0.00024775,2]
[315132604,1708866635777,-150.0,0.00024781,2]
[315132605,1708866635786,-1500.0,0.00024782,2]
[315132606,1708866635797,-150.0,0.00024783,2]
[315132607,1708866635807,-150.0,0.00024785,2]
[315132608,1708866635816,-205.39112878,0.00024787,2]
[315132609,1708866635826,-150.0,0.00024787,2]
[315132610,1708866635835,-150.0,0.00024789,2]
[315132611,1708866635847,-164.99,0.00024789,2]
[315132612,1708866635856,-1500.0,0.0002479,2]
[315132613,1708866635866,-956.42,0.00024791,2]
[315132614,1708866635876,-447.97626038,0.00024792,2]
[315132615,1708866635885,-500.0,0.00024792,2]
[315132616,1708866635895,-500.0,0.00024792,2]
[315132617,1708866635904,-500.0,0.00024792,2]
[315132618,1708866635915,-500.0,0.00024792,2]
[315132619,1708866635924,-264.98707032,0.00024792,2]
[315132620,1708866635934,-500.0,0.00024792,2]
[315132621,1708866635943,-433.6526943,0.00024792,2]
[315132622,1708866635953,-510.19,0.00024792,2]
[315132623,1708866635962,-500.0,0.00024792,2]
[315132624,1708866635972,-500.0,0.00024792,2]
[315132625,1708866635981,-500.0,0.00024792,2]
[315132626,1708866635991,-500.0,0.00024792,2]
[315132627,1708866636000,-500.0,0.00024792,2]
[315132628,1708866636010,-500.0,0.00024792,2]
[315132629,1708866636019,-500.0,0.00024792,2]
[315132630,1708866636028,-500.0,0.00024792,2]
[315132631,1708866636038,-500.0,0.00024792,2]
[315132632,1708866636047,-500.0,0.00024792,2]
[315132633,1708866636058,-500.0,0.00024792,2]
[315132634,1708866636068,-500.0,0.00024792,2]
[315132635,1708866636078,-500.0,0.00024792,2]
[315132636,1708866636088,-500.0,0.00024792,2]
[315132637,1708866636098,-500.0,0.00024792,2]
[315132638,1708866636107,-150.0,0.00024792,2]
[315132639,1708866636116,-500.0,0.00024792,2]
[315132640,1708866636127,-500.0,0.00024792,2]
[315132641,1708866636136,-150.0,0.00024792,2]
[315132642,1708866636146,-520.52764246,0.00024792,2]
[315132643,1708866636156,-500.0,0.00024792,2]
[315132644,1708866636165,-315.63,0.00024792,2]
[315132645,1708866636175,-500.0,0.00024792,2]
[315132646,1708866636185,-500.0,0.00024792,2]
[315132647,1708866636194,-500.0,0.00024792,2]
[315132648,1708866636204,-500.0,0.00024792,2]
[315132649,1708866636214,-500.0,0.00024792,2]
[315132650,1708866636223,-500.0,0.00024792,2]
[315132651,1708866636233,-500.0,0.00024792,2]
[315132652,1708866636242,-500.0,0.00024792,2]
[315132653,1708866636251,-625.21,0.00024792,2]
[315132654,1708866636261,-500.0,0.00024792,2]
[315132655,1708866636271,-500.0,0.00024792,2]
[315132656,1708866636280,-500.0,0.00024792,2]
[315132657,1708866636289,-500.0,0.00024792,2]
[315132658,1708866636299,-500.0,0.00024792,2]
[315132659,1708866636309,-500.0,0.00024792,2]
[315132660,1708866636319,-500.0,0.00024792,2]
[315132661,1708866636329,-500.0,0.00024792,2]
[315132662,1708866636338,-500.0,0.00024792,2]
[315132663,1708866636347,-500.0,0.00024792,2]
[315132664,1708866636357,-517.24391481,0.00024792,2]
[315132665,1708866636367,-500.0,0.00024792,2]
[315132666,1708866636376,-500.0,0.00024792,2]
[315132667,1708866636386,-500.0,0.00024792,2]
[315132668,1708866636395,-500.0,0.00024792,2]
[315132669,1708866636405,-500.0,0.00024792,2]
[315132670,1708866636414,-800.53,0.00024792,2]
[315132671,1708866636425,-500.0,0.00024792,2]
[315132672,1708866636438,-500.0,0.00024792,2]
[315132673,1708866636447,-500.0,0.00024792,2]
[315132674,1708866636456,-500.0,0.00024792,2]
[315132675,1708866636465,-500.0,0.00024792,2]
[315132676,1708866636476,-500.0,0.00024792,2]
[315132677,1708866636485,-500.0,0.00024792,2]
[315132678,1708866636495,-500.0,0.00024792,2]
[315132679,1708866636506,-805.93,0.00024792,2]
[315132680,1708866636515,-861.71,0.00024792,2]
[315132681,1708866636525,-500.0,0.00024792,2]
[315132682,1708866636534,-500.0,0.00024792,2]
[315132683,1708866636545,-500.0,0.00024792,2]
[315132684,1708866636554,-500.0,0.00024792,2]
[315132685,1708866636564,-729.16,0.00024792,2]
[315132686,1708866636573,-500.0,0.00024792,2]
[315132687,1708866636583,-500.0,0.00024792,2]
[315132688,1708866636593,-2431.75,0.00024792,2]
[315132689,1708866636602,-500.0,0.00024792,2]
[315132690,1708866636612,-500.0,0.00024792,2]
[315132691,1708866636621,-500.0,0.00024792,2]
[315132692,1708866636631,-500.0,0.00024792,2]
[315132693,1708866636641,-638.61,0.00024792,2]
[315132694,1708866636650,-500.0,0.00024792,2]
[315132695,1708866636660,-587.25,0.00024792,2]
[315132696,1708866636670,-500.0,0.00024792,2]
[315132697,1708866636679,-500.0,0.00024792,2]
[315132698,1708866636689,-500.0,0.00024792,2]
[315132699,1708866636698,-500.0,0.00024792,2]
[315132700,1708866636708,-500.0,0.00024792,2]
[315132701,1708866636718,-500.0,0.00024792,2]
[315132702,1708866636728,-500.0,0.00024792,2]
[315132703,1708866636738,-500.0,0.00024792,2]
[315132704,1708866636748,-500.0,0.00024792,2]
[315132705,1708866636757,-2118.01,0.00024792,2]
[315132706,1708866636767,-500.0,0.00024792,2]
[315132707,1708866636776,-552.59084716,0.00024792,2]
[315132708,1708866636785,-500.0,0.00024792,2]
[315132709,1708866636795,-1521.98,0.00024792,2]
[315132710,1708866636805,-500.0,0.00024792,2]
[315132711,1708866636814,-500.0,0.00024792,2]
[315132712,1708866636824,-551.59882981,0.00024792,2]
[315132713,1708866636834,-573.28,0.00024792,2]
[315132714,1708866636843,-500.0,0.00024792,2]
[315132715,1708866636853,-523.22,0.00024792,2]
[315132716,1708866636863,-500.0,0.00024792,2]
[315132717,1708866636872,-500.0,0.00024792,2]
[315132718,1708866636881,-500.0,0.00024792,2]
[315132719,1708866636891,-726.39,0.00024792,2]
[315132720,1708866636901,-500.0,0.00024792,2]
[315132721,1708866636910,-1129.03,0.00024792,2]
[315132722,1708866636920,-500.0,0.00024792,2]
[315132723,1708866636930,-500.0,0.00024792,2]
[315132724,1708866636940,-500.0,0.00024792,2]
[315132725,1708866636950,-1038.78,0.00024792,2]
[315132726,1708866636959,-500.0,0.00024792,2]
[315132727,1708866636969,-500.0,0.00024792,2]
[315132728,1708866636978,-500.0,0.00024792,2]
[315132729,1708866636988,-500.0,0.00024792,2]
[315132730,1708866636998,-500.0,0.00024792,2]
[315132731,1708866637007,-500.0,0.00024793,2]
[315132732,1708866637018,-500.0,0.00024794,2]
[315132733,1708866637027,-436.0,0.00024794,2]
[315132734,1708866637037,-500.0,0.00024794,2]
[315132735,1708866637047,-500.0,0.00024794,2]
[315132736,1708866637057,-504.47214505,0.00024794,2]
[315132737,1708866637067,-601.60042173,0.00024794,2]
[315132738,1708866637076,-546.97373911,0.00024794,2]
[315132739,1708866637086,-500.0,0.00024794,2]
[315132740,1708866637095,-500.0,0.00024794,2]
[315132741,1708866637104,-500.0,0.00024794,2]
[315132742,1708866637114,-500.0,0.00024794,2]
[315132743,1708866637124,-500.0,0.00024794,2]
[315132744,1708866637133,-951.15,0.00024794,2]
[315132745,1708866637142,-2293.21,0.00024794,2]
[315132746,1708866637152,-627.25,0.00024794,2]
[315132747,1708866637162,-843.58,0.00024794,2]
[315132748,1708866637172,-2512.48,0.00024794,2]
[315132749,1708866637181,-500.0,0.00024794,2]
[315132750,1708866637191,-721.27,0.00024794,2]
[315132751,1708866637200,-500.0,0.00024794,2]
[315132752,1708866637372,-800.69,0.00024794,2]
[315132753,1708866637410,-7214.15,0.00024794,2]
[315132754,1708866637420,-560.02,0.00024794,2]
[315132755,1708866637430,-500.0,0.00024794,2]
[315132756,1708866637443,-500.0,0.00024794,2]
[315132757,1708866637452,-500.0,0.00024794,2]
[315132758,1708866637461,-1600.94,0.00024794,2]
[315132759,1708866637471,-702.75,0.00024794,2]
[315132760,1708866637481,-500.0,0.00024794,2]
[315132761,1708866637490,-500.0,0.00024794,2]
[315132762,1708866637499,-500.0,0.00024794,2]
[315132763,1708866637508,-2134.28,0.00024794,2]
[315132764,1708866637520,-500.0,0.00024794,2]
[315132765,1708866637529,-3685.76,0.00024794,2]
[315132766,1708866637539,-500.0,0.00024794,2]
[315132767,1708866637550,-500.0,0.00024794,2]
[315132768,1708866637559,-500.0,0.00024794,2]
[315132769,1708866637568,-1219.77,0.00024794,2]
[315132770,1708866637577,-500.0,0.00024794,2]
[315132771,1708866637587,-1945.32,0.00024794,2]
[315132772,1708866637596,-997.9,0.00024794,2]
[315132773,1708866637606,-616.39,0.00024794,2]
[315132774,1708866637615,-500.0,0.00024794,2]
[315132775,1708866637624,-500.0,0.00024794,2]
[315132776,1708866637634,-739.28,0.00024794,2]
[315132777,1708866637644,-1316.94,0.00024794,2]
[315132778,1708866637654,-657.88,0.00024794,2]
[315132779,1708866637663,-500.0,0.00024794,2]
[315132780,1708866637672,-674.98,0.00024794,2]
[315132781,1708866637682,-500.0,0.00024794,2]
[315132782,1708866637691,-605.07,0.00024794,2]
[315132783,1708866637701,-500.0,0.00024794,2]
[315132784,1708866637710,-515.92598082,0.00024794,2]
[315132785,1708866637720,-1029.52,0.00024794,2]
[315132786,1708866637729,-2643.02,0.00024794,2]
[315132787,1708866637739,-1608.44,0.00024794,2]
[315132788,1708866637748,-1302.26,0.00024794,2]
[315132789,1708866637758,-150.0,0.00024794,2]
[315132790,1708866637769,-177.98979816,0.00024795,2]
[315132791,1708866637778,-150.0,0.00024795,2]
[315132792,1708866637788,-160.53243369,0.00024795,2]
[315132793,1708866637797,-188.3812088,0.00024795,2]
[315132794,1708866637807,-2249.92377778,0.00024795,2]
[315132795,1708866637816,-195.90334972,0.00024796,2]
[315132796,1708866637826,-2953.11354296,0.00024796,2]
[315132797,1708866637835,-616.25,0.00024796,2]
[315132798,1708866637844,-636.94,0.00024796,2]
[315132799,1708866637853,-500.0,0.00024796,2]
[315132800,1708866637864,-619.16,0.00024796,2]
[315132801,1708866637872,-500.0,0.00024796,2]
[315132802,1708866637883,-500.0,0.00024796,2]
[315132803,1708866637892,-500.0,0.00024796,2]
[315132804,1708866637901,-565.21,0.00024796,2]
[315132805,1708866637911,-500.0,0.00024796,2]
[315132806,1708866637920,-500.0,0.00024797,2]
[315132807,1708866637930,-500.0,0.00024797,2]
[315132808,1708866637939,-500.0,0.00024797,2]
[315132810,1708866637950,-500.0,0.00024797,2]
[315132811,1708866637959,-500.0,0.00024797,2]
[315132812,1708866637968,-500.0,0.00024797,2]
[315132813,1708866637978,-500.0,0.00024797,2]
[315132815,1708866637986,-500.0,0.00024797,2]
[315132816,1708866637995,-500.0,0.00024797,2]
[315132817,1708866638005,-500.0,0.00024797,2]
[315132818,1708866638014,-500.0,0.00024797,2]
[315132819,1708866638023,-500.0,0.00024797,2]
[315132820,1708866638032,-500.0,0.00024797,2]
[315132821,1708866638041,-500.0,0.00024797,2]
[315132822,1708866638051,-500.0,0.00024797,2]
[315132823,1708866638060,-500.0,0.00024797,2]
[315132824,1708866638069,-500.0,0.00024797,2]
[315132825,1708866638078,-500.0,0.00024797,2]
[315132827,1708866638088,-500.0,0.00024797,2]
[315132828,1708866638097,-500.0,0.00024797,2]
[315132829,1708866638106,-500.0,0.00024797,2]
[315132830,1708866638116,-500.0,0.00024797,2]
[315132831,1708866638125,-150.0,0.00024797,2]
[315132832,1708866638134,-500.0,0.00024797,2]
[315132833,1708866638144,-500.0,0.00024797,2]
[315132834,1708866638154,-500.0,0.00024797,2]
[315132835,1708866638163,-500.0,0.00024797,2]